bitfinex/quotes_SOLUSD_20251118
["timestamp","ask_amount","ask_price","bid_price","bid_amount"]
[1763498564612,3.88155894,141.95,141.94,0.66]
[1763498565506,18.12096,142.01,141.94,0.66]
[1763498565507,3.88155894,141.96,141.94,10.44882769]
[1763498565713,3.88155894,141.97,141.95,13.96882769]
[1763498565915,3.88155894,141.96,141.95,13.96882769]
[1763498566211,0.72,141.99,141.95,13.96882769]
[1763498566412,3.88155894,141.96,141.95,13.96882769]
[1763498566589,3.88155894,141.96,141.95,14.62882769]
[1763498566788,3.88155894,141.96,141.95,13.96882769]
[1763498568389,3.88155894,141.96,141.95,14.62882769]
[1763498569088,0.72,141.98,141.95,14.62882769]
[1763498569285,3.88155894,141.96,141.95,14.62882769]
[1763498569488,3.88155894,141.97,141.95,13.96882769]
[1763498569714,18.12096,141.99,141.96,10.44882769]
[1763498569922,3.88155894,141.98,141.97,4.18]
[1763498571206,3.88155894,141.98,141.97,4.84]
[1763498571414,3.88155894,141.98,141.97,4.18]
[1763498572406,0.72,141.99,141.97,4.18]
[1763498572608,3.88155894,141.98,141.97,4.18]
[1763498575131,4.60155894,141.98,141.97,4.18]
[1763498575304,3.88155894,141.98,141.97,4.18]
[1763498576024,4.60155894,141.98,141.97,4.18]
[1763498576228,3.88155894,141.98,141.97,4.18]
[1763498578517,3.88155894,142.02,141.97,4.84]
[1763498578716,3.88155894,141.98,141.97,4.18]
[1763498579220,3.88155894,141.98,141.97,4.84]
[1763498579425,3.88155894,141.98,141.97,4.18]
[1763498579814,18.12096,142.04,141.97,4.84]
[1763498580011,3.88155894,141.98,141.97,4.84]
[1763498580456,18.84096,142.01,141.97,4.84]
[1763498580610,0.82,142.08,142.0,13.67038663]
[1763498580813,2.48003615,142.06,142.01,6.66003615]
[1763498581120,2.48003615,142.06,142.01,7.32003615]
[1763498581320,2.48003615,142.04,142.02,0.66]
[1763498581525,2.48003615,142.03,142.0,2.82316406]
[1763498581840,2.48003615,142.04,142.02,9.78882769]
[1763498582030,0.72,142.06,142.03,4.18]
[1763498582336,2.48003615,142.04,142.03,4.18]
[1763498583424,3.20003615,142.04,142.03,4.18]
[1763498584337,3.20003615,142.04,142.02,4.18]
[1763498584538,2.48003615,142.03,141.99,9.78882769]
[1763498584709,0.72,142.03,142.0,13.96882769]
[1763498584909,2.48003615,142.01,142.0,9.78882769]
[1763498585116,2.48003615,142.01,142.0,13.96882769]
[1763498586445,2.48003615,142.01,142.0,4.18]
[1763498586942,2.48003615,142.01,141.98,10.44882769]
[1763498587147,2.48003615,141.99,141.94,9.78882769]
[1763498587356,2.48003615,141.95,141.91,9.98882769]
[1763498587648,2.48003615,141.97,141.96,9.78882769]
[1763498587837,2.48003615,141.97,141.96,4.18]
[1763498588022,18.12096,142.01,141.96,4.84]
[1763498588218,2.48003615,141.98,141.97,10.44882769]
[1763498589438,2.48003615,141.98,141.97,9.78882769]
[1763498589642,2.48003615,141.98,141.97,10.44882769]
[1763498590455,2.48003615,141.98,141.97,9.78882769]
[1763498590833,2.48003615,141.98,141.97,10.44882769]
[1763498593457,0.65,142.0,141.97,10.44882769]
[1763498593655,0.65,142.0,141.98,4.18]
[1763498593860,4.83,142.04,141.99,9.78882769]
[1763498594048,0.65,142.04,142.0,4.18]
[1763498594246,4.18,142.07,142.0,4.84]
[1763498594440,0.65,142.04,142.0,4.84]
[1763498594842,2.48003615,142.01,142.0,4.84]
[1763498595160,2.48003615,142.01,142.0,4.18]
[1763498595458,2.48003615,142.01,142.0,14.62882769]
[1763498595840,2.48003615,142.02,142.0,14.62882769]
[1763498596053,2.48003615,142.02,142.01,10.44882769]
[1763498598050,2.48003615,142.03,142.01,10.44882769]
[1763498598238,2.48003615,142.03,142.02,13.96882769]
[1763498598941,2.48003615,142.03,142.02,14.62882769]
[1763498599139,0.75,142.08,142.03,9.78882769]
[1763498599355,2.48003615,142.06,142.04,4.18]
[1763498600264,0.65,142.07,142.04,4.84]
[1763498600449,2.48003615,142.05,142.04,4.84]
[1763498602874,2.48003615,142.05,142.04,4.18]
[1763498604949,0.1,142.08,142.04,4.88]
[1763498605144,2.48003615,142.07,142.05,10.48882769]
[1763498605859,2.48003615,142.07,142.06,0.7]
[1763498606175,0.1,142.08,142.06,0.7]
[1763498606543,2.58003615,142.08,142.07,4.18]
[1763498607138,3.26003615,142.08,142.05,9.78882769]
[1763498607337,2.48003615,142.06,142.05,13.96882769]
[1763498607565,2.48003615,142.06,142.05,4.18]
[1763498609847,2.48003615,142.06,142.01,3.26003615]
[1763498610058,2.48003615,142.03,142.02,13.96882769]
[1763498610245,0.68,142.05,142.02,13.96882769]
[1763498610451,2.48003615,142.03,142.02,14.66882769]
[1763498611945,2.48003615,142.04,142.02,14.66882769]
[1763498612268,2.48003615,142.05,142.03,0.7]
[1763498612465,0.1,142.08,142.03,0.7]
[1763498612642,2.48003615,142.07,142.03,0.7]
[1763498612842,2.48003615,142.07,142.03,1.4040766]
[1763498613270,2.48003615,142.07,142.05,9.78882769]
[1763498613447,2.48003615,142.07,142.06,13.96882769]
[1763498614456,2.48003615,142.07,142.06,14.66882769]
[1763498615658,2.48003615,142.07,142.06,13.96882769]
[1763498615965,2.48003615,142.07,142.06,14.66882769]
[1763498616349,2.48003615,142.07,142.06,13.96882769]
[1763498618671,2.48003615,142.07,142.06,14.66882769]
[1763498619052,2.58003615,142.08,142.06,14.66882769]
[1763498619374,2.58003615,142.08,142.07,10.48882769]
[1763498621174,0.1,142.08,142.07,10.48882769]
[1763498622579,3.27003615,142.08,142.04,0.67]
[1763498622753,2.48003615,142.07,142.05,13.96882769]
[1763498622952,0.79,142.08,142.05,13.96882769]
[1763498622953,2.48003615,142.06,142.05,13.96882769]
[1763498626683,2.48003615,142.06,142.05,9.78882769]
[1763498627080,2.48003615,142.06,142.05,13.96882769]
[1763498628181,2.48003615,142.07,142.05,14.63882769]
[1763498628678,2.48003615,142.06,142.05,13.96882769]
[1763498628854,3.17003615,142.06,142.05,4.18]
[1763498629667,2.48003615,142.06,142.05,4.18]
[1763498631086,2.48003615,142.06,142.05,14.63882769]
[1763498631266,2.48003615,142.06,142.05,13.96882769]
[1763498632069,2.48003615,142.06,142.05,4.18]
[1763498632260,3.17003615,142.06,142.03,9.78882769]
[1763498632462,0.69,142.06,142.05,4.18]
[1763498633565,3.17003615,142.06,142.05,4.18]
[1763498633880,3.17003615,142.06,141.99,20.94392481]
[1763498634066,2.48003615,142.01,142.0,9.78882769]
[1763498634269,2.48003615,142.01,142.0,4.85]
[1763498635765,2.48003615,142.01,142.0,14.63882769]
[1763498635960,2.48003615,142.01,142.0,9.78882769]
[1763498636165,2.48003615,142.01,142.0,4.18]
[1763498636785,2.48003615,142.03,142.0,4.85]
[1763498636980,2.48003615,142.02,142.0,4.85]
[1763498637187,2.48003615,142.02,142.01,10.45882769]
[1763498640802,3.87793433,142.02,142.01,10.45882769]
[1763498641404,3.87793433,142.02,142.01,9.78882769]
[1763498642103,3.87793433,142.02,142.01,13.96882769]
[1763498642981,0.69,142.04,142.01,14.63882769]
[1763498643177,3.87793433,142.02,142.01,13.96882769]
[1763498643784,3.87793433,142.02,142.01,14.63882769]
[1763498645588,4.56793433,142.02,141.97,25.02180415]
[1763498645788,3.87793433,142.0,141.98,14.63882769]
[1763498646391,3.87793433,141.99,141.98,9.78882769]
[1763498646711,4.56793433,141.99,141.98,4.18]
[1763498647113,22.68889433,141.99,141.94,10.45882769]
[1763498647293,0.69,141.98,141.95,4.18]
[1763498647492,3.87793433,141.96,141.95,13.96882769]
[1763498648398,3.87793433,141.96,141.95,9.78882769]
[1763498648611,3.87793433,141.96,141.95,13.96882769]
[1763498649110,3.87793433,141.96,141.95,4.18]
[1763498650795,4.56793433,141.96,141.95,4.18]
[1763498651002,3.87793433,141.96,141.95,4.18]
[1763498652918,3.87793433,141.98,141.95,4.87]
[1763498653102,3.87793433,141.98,141.97,9.78882769]
[1763498653315,3.87793433,141.98,141.97,13.96882769]
[1763498654229,3.87793433,141.98,141.97,14.65882769]
[1763498654919,3.87793433,141.98,141.97,14.15882769]
[1763498655305,3.87793433,141.99,141.97,14.15882769]
[1763498655508,3.87793433,142.0,141.98,0.69]
[1763498655731,3.87793433,142.0,141.99,4.18]
[1763498656226,4.52793433,142.0,141.95,0.69]
[1763498656401,4.52793433,142.0,141.96,4.87]
[1763498656402,3.87793433,141.98,141.96,4.87]
[1763498656601,3.87793433,141.98,141.97,4.18]
[1763498656801,3.87793433,141.98,141.97,4.87]
[1763498657010,3.87793433,141.98,141.97,14.65882769]
[1763498658924,4.52793433,141.98,141.97,13.96882769]
[1763498659127,4.52793433,141.98,141.97,8.36]
[1763498659427,4.52793433,141.98,141.97,4.18]
[1763498659626,3.87793433,141.98,141.97,4.18]
[1763498660425,3.87793433,141.98,141.97,14.65882769]
[1763498663311,3.87793433,141.98,141.97,32.77978769]
[1763498664745,3.87793433,141.99,141.97,32.77978769]
[1763498664930,3.87793433,142.0,141.98,10.43882769]
[1763498665137,3.87793433,142.01,141.99,4.18]
[1763498665315,3.87793433,142.0,141.99,13.96882769]
[1763498665832,3.87793433,142.0,141.99,14.61882769]
[1763498666031,3.87793433,142.02,142.0,9.78882769]
[1763498666329,3.87793433,142.02,142.01,4.83]
[1763498666530,3.87793433,142.02,142.01,4.18]
[1763498674833,4.59793433,142.02,142.01,4.18]
[1763498675038,3.87793433,142.02,142.01,4.18]
[1763498675726,4.59793433,142.02,142.01,4.18]
[1763498676435,8.47586866,142.02,141.99,18.12096]
[1763498676637,3.87793433,142.0,141.99,22.30096]
[1763498676849,4.59793433,142.0,141.99,4.18]
[1763498680245,4.59793433,142.0,141.98,4.18]
[1763498680547,3.87793433,141.99,141.98,4.18]
[1763498681131,3.87793433,141.99,141.98,14.61882769]
[1763498681536,3.87793433,142.0,141.99,9.78882769]
[1763498681756,3.87793433,142.01,141.99,14.61882769]
[1763498681932,3.87793433,142.0,141.99,14.61882769]
[1763498682253,3.87793433,142.0,141.99,32.73978769]
[1763498683426,3.87793433,142.0,141.99,32.78978769]
[1763498683637,3.87793433,142.0,141.99,28.60978769]
[1763498683838,3.87793433,142.0,141.99,32.78978769]
[1763498686361,3.87793433,142.0,141.99,32.08978769]
[1763498686565,3.87793433,142.0,141.99,13.96882769]
[1763498687139,4.58793433,142.0,141.97,9.78882769]
[1763498687339,3.87793433,141.98,141.97,9.78882769]
[1763498687557,3.87793433,141.98,141.97,32.08978769]
[1763498687763,4.58793433,141.98,141.97,4.18]
[1763498689864,3.87793433,141.98,141.97,4.18]
[1763498690762,4.58793433,141.98,141.94,9.78882769]
[1763498690959,3.87793433,141.96,141.95,4.18]
[1763498691160,3.87793433,141.96,141.95,24.45765538]
[1763498691461,3.87793433,141.96,141.95,25.15765538]
[1763498691650,4.58793433,141.96,141.95,4.18]
[1763498692366,4.58793433,141.96,141.91,0.2]
[1763498692660,3.87793433,141.93,141.91,0.2]
[1763498692861,0.71,141.95,141.92,4.18]
[1763498693069,3.87793433,141.94,141.92,4.18]
[1763498693552,3.87793433,141.94,141.92,4.88]
[1763498694344,3.87793433,141.93,141.92,13.96882769]
[1763498694543,0.71,141.94,141.92,13.96882769]
[1763498694544,18.12096,141.95,141.93,0.7]
[1763498694753,3.87793433,141.94,141.92,10.48882769]
[1763498695075,0.71,141.95,141.93,4.18]
[1763498696075,3.87793433,141.94,141.93,4.18]
[1763498696457,4.58793433,141.94,141.93,4.18]
[1763498696763,3.87793433,141.94,141.93,4.18]
[1763498697856,4.58793433,141.94,141.93,4.18]
[1763498699479,4.58793433,141.94,141.91,5.08]
[1763498699771,3.87793433,141.93,141.91,5.08]
[1763498700280,4.18,141.98,141.92,10.48882769]
[1763498700449,3.87793433,141.96,141.94,9.78882769]
[1763498700771,3.87793433,141.95,141.94,9.78882769]
[1763498701156,3.87793433,141.96,141.94,10.48882769]
[1763498701357,3.87793433,141.95,141.93,4.18]
[1763498701552,3.87793433,141.94,141.92,14.66882769]
[1763498701758,3.87793433,141.93,141.92,14.66882769]
[1763498702676,4.58793433,141.93,141.92,14.66882769]
[1763498702877,3.19543157,141.93,141.92,4.18]
[1763498703876,2.48543157,141.93,141.92,4.18]
[1763498704262,2.48543157,141.93,141.92,4.88]
[1763498704461,2.48543157,141.93,141.92,4.18]
[1763498707078,0.71,141.95,141.92,4.18]
[1763498707289,2.48543157,141.93,141.92,4.18]
[1763498707987,3.19543157,141.93,141.92,4.18]
[1763498708159,3.19543157,141.93,141.91,0.2]
[1763498708365,3.19543157,141.92,141.91,0.2]
[1763498709354,2.48543157,141.92,141.91,0.2]
[1763498709564,3.19543157,141.92,141.91,0.2]
[1763498710365,2.48543157,141.92,141.91,0.2]
[1763498710570,0.71,141.93,141.91,0.2]
[1763498710786,2.48543157,141.92,141.91,0.2]
[1763498712169,4.18,141.96,141.91,10.68882769]
[1763498712483,2.48543157,141.94,141.91,15.06882769]
[1763498712662,2.48543157,141.94,141.92,0.7]
[1763498713570,2.48543157,141.93,141.92,10.48882769]
[1763498714370,3.14543157,141.93,141.91,4.58]
[1763498714571,2.48543157,141.92,141.91,18.54882769]
[1763498714771,2.48543157,141.92,141.91,8.76]
[1763498714982,2.48543157,141.92,141.91,4.38]
[1763498715276,3.14543157,141.92,141.91,0.2]
[1763498716672,2.48543157,141.92,141.91,0.2]
[1763498720369,2.48543157,141.92,141.91,0.9]
[1763498720574,2.48543157,141.93,141.91,0.9]
[1763498720775,2.48543157,141.93,141.92,0.7]
[1763498721305,2.48543157,141.93,141.91,0.89]
[1763498721980,2.48543157,141.92,141.91,0.89]
[1763498722491,2.48543157,141.92,141.91,0.2]
[1763498722685,0.65,141.94,141.91,0.2]
[1763498722889,0.65,141.94,141.91,0.89]
[1763498722890,2.48543157,141.92,141.91,0.89]
[1763498724212,2.48543157,141.92,141.91,0.2]
[1763498725191,0.65,141.93,141.91,0.2]
[1763498725584,2.48543157,141.92,141.91,0.2]
[1763498733404,21.25639157,141.92,141.91,0.2]
[1763498734724,2.48543157,141.92,141.91,0.2]
[1763498739436,3.13543157,141.92,141.91,0.2]
[1763498740308,21.25639157,141.92,141.91,0.2]
[1763498740521,3.13543157,141.92,141.91,0.2]
[1763498741124,2.48543157,141.92,141.91,0.2]
[1763498741630,0.65,141.96,141.91,0.89]
[1763498741928,2.48543157,141.93,141.91,0.89]
[1763498742530,0.65,141.95,141.91,0.91]
[1763498742531,2.48543157,141.94,141.91,0.91]
[1763498742939,2.48543157,141.94,141.92,0.71]
[1763498743742,2.48543157,141.93,141.91,0.2]
[1763498743911,2.48543157,141.93,141.91,0.91]
[1763498745026,2.48543157,141.94,141.92,0.71]
[1763498745532,2.48543157,141.95,141.92,0.71]
[1763498746127,3.14543157,141.95,141.92,0.71]
[1763498746439,2.48543157,141.95,141.92,0.71]
[1763498748020,2.48543157,141.94,141.92,0.71]
[1763498749026,3.14543157,141.96,141.92,0.71]
[1763498749216,2.48543157,141.95,141.92,0.71]
[1763498749417,3.14543157,141.95,141.92,0.71]
[1763498749832,2.48543157,141.95,141.92,0.71]
[1763498750205,3.14543157,141.95,141.92,0.71]
[1763498750409,2.48543157,141.95,141.92,0.71]
[1763498750632,3.14543157,141.96,141.92,0.71]
[1763498752746,2.48543157,141.95,141.92,0.71]
[1763498752922,3.14543157,141.95,141.92,0.71]
[1763498753831,2.48543157,141.95,141.92,0.71]
[1763498754130,2.48543157,141.96,141.92,0.71]
[1763498754551,3.14543157,141.96,141.92,0.71]
[1763498754720,0.66,141.95,141.92,0.71]
[1763498754921,3.14543157,141.96,141.92,0.71]
[1763498755140,2.48543157,141.96,141.92,0.71]
[1763498755520,3.14543157,141.96,141.92,0.71]
[1763498756347,0.66,141.95,141.92,0.71]
[1763498756648,2.48543157,141.96,141.92,0.71]
[1763498756946,3.14543157,141.96,141.92,0.71]
[1763498758039,3.14543157,141.95,141.92,0.71]
[1763498759960,2.48543157,141.95,141.92,0.71]
[1763498760365,0.66,141.97,141.92,0.71]
[1763498760571,0.66,142.0,141.96,2.48543157]
[1763498760737,2.48543157,142.02,141.98,9.78882769]
[1763498760940,0.66,142.02,141.99,0.71]
[1763498761170,3.14543157,142.02,141.98,9.78882769]
[1763498761466,2.48543157,141.99,141.96,13.96882769]
[1763498761638,2.48543157,141.99,141.96,14.67882769]
[1763498762034,2.48543157,141.97,141.93,0.71]
[1763498762261,2.48543157,141.97,141.93,10.49882769]
[1763498762567,3.14543157,141.97,141.94,0.71]
[1763498763745,0.66,141.97,141.94,0.71]
[1763498764152,2.48543157,141.95,141.92,0.71]
[1763498764643,2.48543157,141.94,141.91,9.98882769]
[1763498764846,3.88322784,141.93,141.91,0.2]
[1763498765045,4.54322784,141.93,141.91,0.2]
[1763498766170,3.88322784,141.93,141.91,0.2]
[1763498766345,4.54322784,141.92,141.91,0.2]
[1763498766675,18.12096,141.92,141.91,0.91]
[1763498766841,18.12096,141.93,141.91,0.91]
[1763498767042,18.12096,141.93,141.92,0.71]
[1763498767646,3.88322784,141.95,141.92,0.71]
[1763498768045,4.18,141.98,141.92,0.71]
[1763498768361,3.88322784,141.95,141.92,0.71]
[1763498770044,4.54322784,141.96,141.92,0.71]
[1763498770865,3.88322784,141.95,141.92,0.71]
[1763498771973,3.88322784,141.96,141.92,0.71]
[1763498772372,4.58322784,141.96,141.92,0.71]
[1763498772572,3.88322784,141.97,141.92,4.59322784]
[1763498772788,3.88322784,141.98,141.92,4.59322784]
[1763498772950,3.88322784,141.98,141.93,0.71]
[1763498773152,4.58322784,141.98,141.93,0.71]
[1763498774060,3.88322784,141.97,141.93,0.71]
[1763498775391,3.88322784,141.94,141.91,0.2]
[1763498775576,4.88,141.96,141.91,0.2]
[1763498775577,3.88322784,141.92,141.91,0.2]
[1763498775752,4.58322784,141.92,141.91,0.2]
[1763498776767,0.7,141.92,141.91,0.2]
[1763498776956,4.58322784,141.92,141.91,0.2]
[1763498778474,18.12096,141.9,141.89,0.2]
[1763498778691,18.12096,141.9,141.85,0.2]
[1763498778692,18.12096,141.89,141.85,0.2]
[1763498778979,3.88322784,141.86,141.85,0.2]
[1763498779350,4.58322784,141.86,141.85,0.2]
[1763498779568,4.58322784,141.88,141.85,0.2]
[1763498779783,0.7,141.88,141.85,0.2]
[1763498780087,0.7,141.87,141.85,0.2]
[1763498780445,3.88322784,141.86,141.85,0.2]
[1763498780871,4.58322784,141.86,141.85,0.2]
[1763498782458,4.58322784,141.86,141.84,0.2]
[1763498782459,27.90978769,141.85,141.84,0.2]
[1763498782674,18.12096,141.83,141.82,0.2]
[1763498782875,22.00418784,141.83,141.82,0.2]
[1763498783251,32.11301553,141.83,141.82,0.2]
[1763498785296,30.22978769,141.83,141.82,0.2]
[1763498785477,34.11301553,141.83,141.82,0.2]
[1763498785684,22.00418784,141.82,141.81,0.2]
[1763498785874,26.50418784,141.82,141.81,0.2]
[1763498786582,36.29301553,141.82,141.81,0.2]
[1763498786797,38.29301553,141.82,141.81,0.2]
[1763498787560,38.29301553,141.82,141.77,0.2]
[1763498787762,24.32418784,141.81,141.77,0.2]
[1763498788175,34.11301553,141.81,141.77,0.2]
[1763498788693,4.20322784,141.8,141.77,0.2]
[1763498790181,13.99205553,141.8,141.77,0.2]
[1763498792974,10.10882769,141.8,141.77,0.2]
[1763498793170,13.99205553,141.8,141.77,0.2]
[1763498797882,18.17205553,141.8,141.77,0.2]
[1763498802315,18.12096,141.78,141.77,0.2]
[1763498802488,26.18418784,141.78,141.77,0.2]
[1763498802687,26.50418784,141.78,141.77,0.2]
[1763498805628,26.50418784,141.78,141.76,0.1]
[1763498805629,40.17624337,141.78,141.76,0.1]
[1763498805922,18.12096,141.74,141.7,0.66]
[1763498806148,9.78882769,141.77,141.7,0.66]
[1763498806315,3.88322784,141.73,141.7,0.66]
[1763498806618,4.18,141.72,141.7,0.66]
[1763498806907,8.06322784,141.72,141.7,0.66]
[1763498807212,3.88322784,141.71,141.7,0.66]
[1763498808691,3.88322784,141.71,141.68,0.66]
[1763498809014,3.88322784,141.69,141.67,0.87004769]
[1763498809230,26.09414915,141.68,141.67,0.66]
[1763498812400,7.97318915,141.68,141.67,0.66]
[1763498813223,8.06322784,141.68,141.67,0.66]
[1763498818429,4.18,141.68,141.67,0.66]
[1763498818616,8.06322784,141.68,141.67,0.66]
[1763498819020,10.00882769,141.75,141.67,0.66]
[1763498819220,3.88322784,141.7,141.67,0.66]
[1763498819420,4.18,141.7,141.68,3.88322784]
[1763498819629,4.18,141.7,141.69,0.66]
[1763498821233,8.06322784,141.7,141.69,0.66]
[1763498821431,3.88322784,141.7,141.69,0.66]
[1763498821618,3.88322784,141.71,141.69,0.66]
[1763498821825,8.06322784,141.7,141.68,0.66]
[1763498823110,3.88322784,141.69,141.66,0.66]
[1763498823314,8.06322784,141.68,141.66,0.66]
[1763498823550,18.12096,141.67,141.66,0.66]
[1763498825630,18.12096,141.67,141.64,0.1]
[1763498825631,18.12096,141.65,141.64,0.1]
[1763498825825,24.51816276,141.65,141.64,0.1]
[1763498826036,22.30096,141.65,141.64,0.1]
[1763498826220,24.51816276,141.65,141.64,0.1]
[1763498827227,34.52699045,141.65,141.64,0.1]
[1763498827557,34.52699045,141.65,141.58,0.66]
[1763498827854,2.21720276,141.6,141.58,0.66]
[1763498828028,18.12096,141.59,141.58,0.66]
[1763498828426,4.18,141.6,141.58,0.66]
[1763498828734,18.12096,141.59,141.58,0.66]
[1763498830058,18.12096,141.61,141.58,2.87720276]
[1763498830235,18.12096,141.61,141.59,2.21720276]
[1763498830551,4.18,141.62,141.6,2.21720276]
[1763498830851,22.30096,141.62,141.6,0.66]
[1763498831164,22.30096,141.62,141.61,0.66]
[1763498831335,7.89017581,141.72,141.61,2.87720276]
[1763498831528,2.21720276,141.69,141.64,2.21720276]
[1763498831834,18.12096,141.66,141.64,2.21720276]
[1763498832028,18.12096,141.66,141.65,0.66]
[1763498832548,4.2,141.68,141.65,0.66]
[1763498832751,18.12096,141.66,141.65,0.66]
[1763498832934,20.33816276,141.66,141.63,0.71]
[1763498833132,4.2,141.65,141.63,0.71]
[1763498833332,4.2,141.65,141.63,2.92720276]
[1763498833642,4.2,141.65,141.64,2.92720276]
[1763498833845,2.21720276,141.69,141.64,2.92720276]
[1763498833846,4.2,141.69,141.64,2.92720276]
[1763498834027,4.2,141.69,141.66,2.21720276]
[1763498834231,18.12096,141.68,141.66,2.21720276]
[1763498834538,18.12096,141.68,141.67,2.92720276]
[1763498834745,4.2,141.69,141.67,2.92720276]
[1763498834930,4.2,141.69,141.68,0.71]
[1763498835132,18.12096,141.67,141.65,2.21720276]
[1763498835426,18.12096,141.66,141.64,2.21720276]
[1763498835620,18.12096,141.66,141.65,2.21720276]
[1763498835820,18.12096,141.66,141.65,2.92720276]
[1763498836635,18.12096,141.67,141.65,2.92720276]
[1763498836836,18.12096,141.67,141.66,0.71]
[1763498837950,18.12096,141.68,141.66,2.92720276]
[1763498838149,18.12096,141.68,141.6,8.86881104]
[1763498838150,18.12096,141.68,141.67,0.71]
[1763498838353,18.12096,141.67,141.65,0.71]
[1763498839059,18.12096,141.66,141.65,0.71]
[1763498842160,18.12096,141.66,141.65,0.66]
[1763498842340,18.12096,141.66,141.6,9.78882769]
[1763498842546,4.2,141.65,141.63,0.66]
[1763498843954,22.32096,141.67,141.64,2.21720276]
[1763498844348,22.32096,141.67,141.63,0.66]
[1763498844349,18.12096,141.65,141.63,2.21720276]
[1763498844749,4.2,141.67,141.64,0.66]
[1763498845830,6.41720276,141.67,141.64,0.66]
[1763498846949,4.2,141.67,141.64,0.66]
[1763498847153,6.41720276,141.67,141.64,0.66]
[1763498847668,4.2,141.67,141.64,0.66]
[1763498848755,2.21720276,141.66,141.64,0.66]
[1763498848959,6.41720276,141.67,141.64,0.66]
[1763498849350,4.2,141.67,141.64,0.66]
[1763498849971,4.2,141.67,141.64,2.87720276]
[1763498850568,18.12096,141.67,141.65,2.87720276]
[1763498850770,4.2,141.69,141.66,2.21720276]
[1763498850947,4.2,141.69,141.67,2.21720276]
[1763498851148,18.12096,141.69,141.68,0.66]
[1763498851365,4.2,141.71,141.68,0.66]
[1763498851548,4.2,141.71,141.68,2.87720276]
[1763498851872,4.2,141.71,141.68,0.66]
[1763498852073,4.2,141.71,141.69,0.66]
[1763498853261,20.33816276,141.72,141.69,0.66]
[1763498853465,24.53816276,141.73,141.69,0.66]
[1763498854180,2.21720276,141.71,141.69,0.66]
[1763498855884,22.54096,141.73,141.69,0.66]
[1763498856049,2.21720276,141.71,141.69,0.66]
[1763498856752,22.32096,141.73,141.69,0.66]
[1763498856954,2.21720276,141.72,141.69,0.66]
[1763498857383,18.12096,141.7,141.69,0.66]
[1763498859681,22.32096,141.73,141.69,0.66]
[1763498859890,20.33816276,141.7,141.65,2.21720276]
[1763498860088,20.33816276,141.7,141.69,0.66]
[1763498860782,2.21720276,141.7,141.64,2.21720276]
[1763498860956,18.12096,141.68,141.67,0.66]
[1763498861590,18.12096,141.67,141.65,0.66]
[1763498861790,20.33816276,141.67,141.65,0.66]
[1763498861971,18.12096,141.67,141.65,0.66]
[1763498862895,18.12096,141.66,141.65,0.66]
[1763498866908,2.21720276,141.67,141.65,0.66]
[1763498867375,18.12096,141.66,141.65,0.66]
[1763498868979,4.2,141.68,141.65,0.66]
[1763498869179,18.12096,141.66,141.65,0.66]
[1763498871887,2.21720276,141.69,141.65,0.66]
[1763498872089,18.12096,141.67,141.65,0.66]
[1763498874300,4.2,141.7,141.65,0.66]
[1763498874485,2.21720276,141.69,141.65,0.66]
[1763498877308,4.42,141.7,141.66,0.67]
[1763498877600,2.21720276,141.67,141.64,0.67]
[1763498880422,2.21720276,141.65,141.62,0.67]
[1763498880710,2.21720276,141.65,141.59,0.67]
[1763498880711,2.21720276,141.63,141.59,0.67]
[1763498880920,2.21720276,141.61,141.59,0.67]
[1763498881486,20.33816276,141.62,141.59,0.67]
[1763498881704,2.21720276,141.62,141.59,0.67]
[1763498881914,2.21720276,141.61,141.59,0.67]
[1763498884798,3.4678623,141.61,141.59,0.67]
[1763498889423,3.4678623,141.64,141.59,4.1378623]
[1763498889594,3.4678623,141.63,141.6,0.67]